[Event "28th Hit Open-A 2024"]
[Site "Nova Gorica"]
[Date "2024.01.30"]
[Round "6.12"]
[White "Goroshkov, Maksym"]
[Black "Dorokhina, Elizaveta"]
[Result "1-0"]
[ECO "A07"]
[WhiteElo "2338"]
[BlackElo "1994"]
[Annotator "TA"]
[PlyCount "120"]
[EventDate "2024.01.22"]
[EventType "swiss"]
[EventCountry "SLO"]
[SourceTitle "playchess.com"]
[Source "ChessBase"]
[SourceQuality "1"]
[TimeControl "5400+30"]

{[%evp 16,120,34,22,36,37,32,22,45,3,15,-19,-4,-11,-15,-9,-13,-22,-23,-17,-15,-36,-27,-21,-21,-34,-14,-20,-19,-24,-14,-9,-10,-16,0,0,9,12,4,0,7,0,88,100,100,99,138,114,156,156,156,156,156,156,156,156,156,156,156,156,215,156,587,587,616,639,606,526,1195,1164,1520,1372,1139,941,1841,1776,1775,1258,3116,2561,5310,5863,4133,2706,29978,29979,29978,29980,29980,29981,29980,29982,29982,29983,29983,29984,29984,29985,29985,29986,29987,29987,29987,29988,29988,29989,29990]} 1. Nf3 {[%emt 0:00:57]} d5 {[%emt 0:10:25]} 2. b3 {[%emt 0:00:00]} Bf5 {[%emt 0:00:15]} 3. Bb2 {[%emt 0:00:00]} e6 {[%emt 0:00:16]} 4. g3 {[%emt 0:00:06]} Nf6 {[%emt 0:01:00]} 5. Bg2 {[%emt 0:00:10]} Be7 {[%emt 0:02:27]} 6. d3 {[%emt 0:00:08]} h6 {[%emt 0:00:14]} 7. O-O {[%emt 0:00:16]} O-O {[%emt 0:00:22]} 8. Nbd2 {[%emt 0:00:13]} c5 {[%emt 0:01:17]} 9. Ne5 {[%emt 0:01:39]} Nbd7 {[%emt 0:06:45]} 10. e4 {[%emt 0:01:09]} Bh7 {[%emt 0:01:12]} 11. Nxd7 {[%emt 0:02:02]} Qxd7 {[%emt 0:00:10] The position is equal.} 12. exd5 {[%emt 0:00:21]} exd5 {[%emt 0:00:48]} 13. Qe2 {[%emt 0:06:56]} Rfe8 {[%emt 0:03:08][%cal Oc5c4]} 14. Rae1 {[%emt 0:01:15]} Bf5 {[%emt 0:04:06]} 15. Nf3 {[%emt 0:00:15]} Rad8 {[%emt 0:06:38]} 16. Ne5 {[%emt 0:02:52]} Qc8 {[%emt 0:00:28]} 17. Qd2 {[%emt 0:10:48]} Bh3 {[%emt 0:03:00]} 18. Qf4 {[%emt 0:09:48]} Bxg2 {[%emt 0:02:21]} 19. Kxg2 {[%emt 0:00:04]} Bd6 {[%emt 0:00:32] Strongly threatening ...d4.} 20. Qf3 {[%emt 0:00:25]} Re7 {[%emt 0:10:18]} 21. Re2 {[%emt 0:03:58]} Rde8 {[%emt 0:00:36]} 22. Rfe1 {[%emt 0:00:08]} b5 {[%emt 0:08:32] ...d4 would now be deadly.} 23. h3 {[%emt 0:03:53]} d4 {[%emt 0:10:21]} 24. Ng4 {[%emt 0:00:08]} Nxg4 {[%emt 0:00:20]} (24... Nd5 $5) 25. Rxe7 {[%emt 0:00:23]} Rxe7 {[%emt 0:00:13]} 26. Rxe7 {[%emt 0:00:08]} Bxe7 {[%emt 0:00:04]} 27. hxg4 $11 {[%emt 0:00:10][%mdl 4096] Endgame. KQB-KQB} a6 {[%emt 0:01:59]} 28. Qe4 {[%emt 0:01:24]} Qe6 {[%emt 0:00:33] [#]} (28... Bf8 $11) 29. Qxe6 $1 $16 {[%emt 0:04:49]} fxe6 {[%emt 0:00:06] [#] KB-KB} 30. b4 $1 {[%emt 0:00:52]} cxb4 {[%emt 0:08:10]} (30... c4 31. dxc4) 31. Bxd4 {[%emt 0:00:11]} Kf7 {[%emt 0:00:20]} 32. Kf3 {[%emt 0:00:09]} Bd6 {[%emt 0:01:41]} 33. Ke4 {[%emt 0:00:21]} g6 {[%emt 0:02:30]} 34. Be5 {[%emt 0:00:48]} Bc5 {[%emt 0:04:33]} 35. d4 {[%emt 0:00:14][%cal Bd3d4,Bd4d5][%mdl 32]} Be7 {[%emt 0:02:06]} 36. d5 {[%emt 0:02:02]} Bc5 {[%emt 0:00:30]} 37. f3 {[%emt 0:00:33]} Ke7 {[%emt 0:01:25]} (37... Bf2 $16 {might work better.} 38. Bf4 exd5+ 39. Kxd5 h5) 38. Bf4 $18 {[%emt 0:01:58]} g5 $2 {[%emt 0:03:42] This costs Black the game.} (38... Bf2 $16 39. Bxh6 Bxg3) 39. Be5 {[%emt 0:00:13]} Bf2 {[%emt 0:00:11]} 40. f4 {[%emt 0:03:04]} exd5+ {[%emt 0:05:05]} 41. Kxd5 {[%emt 0:00:06]} gxf4 {[%emt 0:01:38]} 42. gxf4 {[%emt 0:00:06][%cal Bg3f4,Bf4f5][%mdl 32]} Kf7 {[%emt 0:00:40]} 43. f5 {[%emt 0:00:33]} Be3 {[%emt 0:00:23]} 44. Bd4 {[%emt 0:00:29]} Bd2 {[%emt 0:00:27]} 45. Kc5 {[%emt 0:00:16]} Ke7 {[%emt 0:00:37]} 46. Be5 {[%emt 0:00:12]} Kd7 {[%emt 0:00:16]} 47. Kb6 {[%emt 0:00:15]} Be3+ {[%emt 0:00:49]} 48. Kxa6 {[%emt 0:00:25]} Kc6 {[%emt 0:00:01]} 49. Bg7 {[%emt 0:00:43] Intending f6 and mate.} Bd2 {[%emt 0:00:58]} 50. f6 {[%emt 0:00:10] White mates.} Bc3 {[%emt 0:00:07]} 51. Bxh6 {[%emt 0:00:07]} Bxf6 {[%emt 0:00:04]} 52. g5 {[%emt 0:00:06]} Be5 {[%emt 0:01:19]} 53. g6 {[%emt 0:00:05]} Bf6 {[%emt 0:00:25]} 54. g7 {[%emt 0:00:05]} Bxg7 {[%emt 0:00:02]} 55. Bxg7 {[%emt 0:00:04]} Kc7 {[%emt 0:00:58]} 56. Kxb5 {[%emt 0:00:06]} Kb7 {[%emt 0:00:04]} 57. Kxb4 {[%emt 0:00:06]} Ka8 {[%emt 0:00:05]} 58. Bh8 {[%emt 0:00:39]} Ka7 {[%emt 0:00:05]} 59. Kc5 {[%emt 0:00:04]} Kb7 {[%emt 0:00:09]} 60. Kd6 {[%emt 0:00:03]} Kc8 {[%emt 0:00:04] Weighted Error Value: White=0.04 (flawless) /Black=0.33.  Loses game:     	---       	Black=1      Mistake:       	---       	Black=2      Inaccurate:     	White=2     	Black=3      OK:         	White=14    	Black=11     Best:        	White=1     	---        Strong:       	White=1     	---        Brilliant:      	White=1     	---} 1-0

[Event "28th Hit Open-A 2024"]
[Site "Nova Gorica"]
[Date "2024.01.30"]
[Round "6.13"]
[White "Pirs, Matjaz"]
[Black "Stevanic, David"]
[Result "0-1"]
[ECO "C42"]
[WhiteElo "1965"]
[BlackElo "2294"]
[Annotator "RC"]
[PlyCount "130"]
[EventDate "2024.01.22"]
[EventType "swiss"]
[EventCountry "SLO"]
[SourceTitle "playchess.com"]
[Source "ChessBase"]
[SourceQuality "1"]
[TimeControl "5400+30"]

1. e4 {[%emt 0:00:06]} e5 {[%emt 0:00:05]} 2. Nf3 {[%emt 0:00:32]} Nf6 {[%emt 0:00:05]} 3. Nc3 {[%emt 0:10:27]} Bb4 {[%emt 0:00:30]} 4. Nxe5 {[%emt 0:15:12]} O-O {[%emt 0:00:11]} 5. Nd3 {[%emt 0:00:10]} Bxc3 {[%emt 0:00:13]} 6. dxc3 {[%emt 0:00:08]} Nxe4 {[%emt 0:00:05]} 7. Be2 {[%emt 0:00:07]} d6 {[%emt 0:00:41]} 8. O-O {[%emt 0:00:19]} Bf5 {[%emt 0:01:14]} 9. Be3 {[%emt 0:03:53]} Nc6 {[%emt 0:04:55]} 10. Re1 {[%emt 0:05:46]} Re8 {[%emt 0:02:25]} 11. Nf4 {[%emt 0:06:39]} Ne5 {[%emt 0:02:13]} 12. h3 {[%emt 0:26:16]} c6 {[%emt 0:05:57]} 13. Bd3 {[%emt 0:04:58]} d5 {[%emt 0:03:55]} 14. f3 {[%emt 0:10:43]} Nxd3 {[%emt 0:08:09]} 15. cxd3 {[%emt 0:00:16]} Ng3 {[%emt 0:17:44]} 16. Qd2 {[%emt 0:00:10]} Bg6 {[%emt 0:08:24]} 17. Bf2 {[%emt 0:00:42]} Nf5 {[%emt 0:00:02]} 18. Rxe8+ {[%emt 0:00:06]} Qxe8 {[%emt 0:00:04]} 19. Re1 {[%emt 0:00:06]} Qd7 {[%emt 0:00:17]} 20. Re2 {[%emt 0:03:49]} b6 {[%emt 0:00:56]} 21. Qe1 {[%emt 0:00:14]} Kf8 {[%emt 0:00:40]} 22. g4 {[%emt 0:02:11]} Nd6 {[%emt 0:01:21]} 23. Bg3 {[%emt 0:00:00]} Nb7 {[%emt 0:10:10]} 24. h4 {[%emt 0:00:00]} h6 {[%emt 0:04:08]} 25. Nxg6+ {[%emt 0:00:20]} fxg6 {[%emt 0:00:02]} 26. d4 {[%emt 0:00:17]} Re8 {[%emt 0:01:30]} 27. Be5 {[%emt 0:00:08]} Kg8 {[%emt 0:00:38]} 28. Kg2 {[%emt 0:00:48]} Nd8 {[%emt 0:03:16]} 29. Re3 {[%emt 0:01:12]} Nf7 {[%emt 0:02:30]} 30. Kg3 {[%emt 0:00:07]} g5 {[%emt 0:04:01]} 31. h5 {[%emt 0:01:08]} Nd8 {[%emt 0:00:15]} 32. Qb1 {[%emt 0:01:48]} Ne6 {[%emt 0:00:48]} 33. Kf2 {[%emt 0:03:40]} Qf7 {[%emt 0:00:43]} 34. Qe1 {[%emt 0:00:19]} Nf8 {[%emt 0:03:06]} 35. Qe2 {[%emt 0:01:34]} g6 {[%emt 0:02:38]} 36. hxg6 {[%emt 0:00:03]} Qxg6 {[%emt 0:00:50]} 37. a3 {[%emt 0:01:01]} h5 {[%emt 0:02:41]} 38. gxh5 {[%emt 0:00:05]} Qxh5 {[%emt 0:00:41]} 39. f4 {[%emt 0:00:58]} Qh2+ {[%emt 0:03:29]} 40. Kf1 {[%emt 0:00:23]} Qh1+ {[%emt 0:00:33]} 41. Kf2 {[%emt 0:00:06]} Qh2+ {[%emt 0:03:09]} 42. Kf1 {[%emt 0:00:04]} Qxe2+ {[%emt 0:00:13]} 43. Rxe2 {[%emt 0:00:39]} gxf4 {[%emt 0:00:11]} 44. Rg2+ {[%emt 0:00:43]} Kf7 {[%emt 0:00:11]} 45. Bxf4 {[%emt 0:00:49]} Nd7 {[%emt 0:01:24]} 46. Rf2 {[%emt 0:00:27]} Rg8 {[%emt 0:01:42]} 47. Ke2 {[%emt 0:00:11]} Ke6 {[%emt 0:00:22]} 48. Kd3 {[%emt 0:00:59]} Nf6 {[%emt 0:00:16]} 49. Be5 {[%emt 0:00:39]} Ne4 {[%emt 0:00:27]} 50. Rh2 {[%emt 0:00:11]} Kf5 {[%emt 0:02:14]} 51. Rh5+ {[%emt 0:01:23]} Kg4 {[%emt 0:01:54]} 52. Rh8 {[%emt 0:00:43]} Rxh8 {[%emt 0:00:16]} 53. Bxh8 {[%emt 0:00:05]} Kf3 {[%emt 0:00:44]} 54. Bg7 {[%emt 0:01:49]} Nf2+ {[%emt 0:00:55]} 55. Kc2 {[%emt 0:00:20]} Ke2 {[%emt 0:00:41]} 56. Bf8 {[%emt 0:00:19]} Ne4 {[%emt 0:00:53]} 57. b4 {[%emt 0:01:29]} b5 {[%emt 0:00:26]} 58. Bh6 {[%emt 0:00:26]} Nd6 {[%emt 0:00:28]} 59. Bf4 {[%emt 0:01:04]} Nc4 {[%emt 0:00:07]} 60. Bc1 {[%emt 0:00:03]} a6 {[%emt 0:00:35]} 61. Kb3 {[%emt 0:00:35]} Kd3 {[%emt 0:00:16]} 62. Bg5 {[%emt 0:00:38]} Nb6 {[%emt 0:00:32]} 63. Bh4 {[%emt 0:00:39]} Na4 {[%emt 0:00:06]} 64. Be1 {[%emt 0:00:06]} Ke2 {[%emt 0:00:07]} 65. Bh4 {[%emt 0:00:20]} Kd2 {[%emt 0:00:07]} 0-1

[Event "28th Hit Open-A 2024"]
[Site "Nova Gorica"]
[Date "2024.01.30"]
[Round "6.14"]
[White "Furlan, Miha"]
[Black "Zupancic, Urban"]
[Result "1-0"]
[ECO "B84"]
[WhiteElo "2287"]
[BlackElo "2025"]
[Annotator "TA"]
[PlyCount "75"]
[EventDate "2024.01.22"]
[EventType "swiss"]
[EventCountry "SLO"]
[SourceTitle "playchess.com"]
[Source "ChessBase"]
[SourceQuality "1"]
[TimeControl "5400+30"]

{[%evp 14,75,27,34,81,72,66,72,68,62,75,68,101,80,120,111,135,116,107,106,141,125,125,134,143,141,162,157,152,158,188,169,284,287,456,448,448,455,597,598,598,576,560,545,567,545,586,572,584,589,596,597,582,579,570,485,1011,983,748,729,6459,6382,5577,1626]} 1. e4 {[%emt 0:00:03]} c5 {[%emt 0:00:15]} 2. Nf3 {[%emt 0:00:08]} d6 {[%emt 0:00:12]} 3. d4 {[%emt 0:00:07]} cxd4 {[%emt 0:00:10]} 4. Nxd4 {[%emt 0:00:05]} Nf6 {[%emt 0:00:13]} 5. Nc3 {[%emt 0:00:07]} a6 {[%emt 0:00:23]} 6. Be2 {[%emt 0:00:15]} e6 {[%emt 0:00:50]} 7. f4 {[%emt 0:00:28]} Qc7 {[%emt 0:04:44]} 8. g4 {[%emt 0:01:52][%cal Bg2g4,Bg4g5][%mdl 32]} Nfd7 {[%emt 0:05:44]} (8... h6 $14) 9. g5 {[%emt 0:06:41]} Nc6 {[%emt 0:03:19]} 10. Be3 {[%emt 0:01:14]} b5 {[%emt 0:04:59] White is better.} 11. a3 {[%emt 0:05:34] White is more active.} Bb7 {[%emt 0:05:32]} 12. Rf1 {[%emt 0:01:18] White leaves nothing to chance now.} Nxd4 {[%emt 0:24:21]} 13. Qxd4 {[%emt 0:00:44]} e5 {[%emt 0:02:42]} 14. Qd2 {[%emt 0:02:21]} (14. Nd5 exd4 15. Nxc7+ Kd8 16. Nxa8 dxe3 $19) 14... exf4 {[%emt 0:11:09]} 15. Bxf4 {[%emt 0:02:04]} Be7 {[%emt 0:02:15]} 16. O-O-O {[%emt 0:06:34][%cal Rf4d6]} Ne5 {[%emt 0:00:57]} 17. h4 {[%emt 0:09:32][%cal Bh2h4,Bh4h5][%mdl 32]} Rc8 {[%emt 0:11:17]} 18. Kb1 {[%emt 0:08:16]} O-O {[%emt 0:00:50]} 19. h5 {[%emt 0:03:38]} Nc4 {[%emt 0:04:45]} 20. Bxc4 {[%emt 0:02:25]} Qxc4 {[%emt 0:00:18]} 21. Bxd6 {[%emt 0:01:52]} Bxd6 {[%emt 0:00:39]} 22. Qxd6 {[%emt 0:00:09]} Bxe4 {[%emt 0:01:00] Black is weak on the dark squares} (22... Qc5 $142 23. Qd2 b4 24. axb4 Qxb4) 23. Rf4 $18 {[%emt 0:01:56]} (23. Qxa6 $2 Qb3 24. Ka1 (24. Nxe4 Rxc2) 24... Bxc2 $19) 23... Rc6 {[%emt 0:11:43] [#]} (23... Bxc2+ {was called for.} 24. Kxc2 Qe2+ 25. Kb3 (25. Kb1 Qxh5 26. a4 Qxg5 $16) 25... Qxh5) 24. Qxf8+ $3 {[%emt 0:02:58][%mdl 512] White is clearly winning.} Kxf8 {[%emt 0:00:11]} 25. Rxe4 {[%emt 0:00:12][%cal Rd1d8]} (25. Nxe4 $2 {is the wrong capture.} Qxc2+ 26. Ka2 Qxd1 $19) 25... f5 {[%emt 0:06:17]} 26. Rd8+ {[%emt 0:02:49]} Kf7 {[%emt 0:00:00]} 27. Rd7+ {[%emt 0:00:19]} Kf8 {[%emt 0:00:00]} 28. Rxc4 {[%emt 0:00:30]} Rxc4 {[%emt 0:00:00][%mdl 4096] Endgame. KRN-KR} 29. g6 {[%emt 0:00:57]} hxg6 {[%emt 0:00:00]} 30. hxg6 {[%emt 0:00:08] [#] aiming for Nd5.} Rc6 {[%emt 0:00:08]} 31. Rf7+ {[%emt 0:01:20]} Kg8 {[%emt 0:00:08]} 32. Rxf5 {[%emt 0:00:18] Hoping for Nd5.} Rxg6 {[%emt 0:00:10]} 33. b4 {[%emt 0:00:33]} Re6 {[%emt 0:01:13]} 34. Nd5 {[%emt 0:02:59]} g6 {[%emt 0:00:22]} (34... Kh7 $142 35. Rh5+ Kg8) 35. Rf6 {[%emt 0:00:46]} Re1+ {[%emt 0:00:38]} 36. Kb2 {[%emt 0:00:11]} Rd1 {[%emt 0:00:23]} 37. Rxg6+ {[%emt 0:00:36]} Kf7 {[%emt 0:00:14]} 38. Rd6 {[%emt 0:00:22] Weighted Error Value: White=0.03 (flawless) /Black=0.45.  Mistake:       	---       	Black=3      Inaccurate:     	---       	Black=3      OK:         	White=16    	Black=9      Best:        	White=1     	Black=2} 1-0

[Event "28th Hit Open-A 2024"]
[Site "Nova Gorica"]
[Date "2024.01.30"]
[Round "6.15"]
[White "Kukushkin, Ivan"]
[Black "Bodrogi, Bendeguz"]
[Result "0-1"]
[ECO "B15"]
[WhiteElo "1890"]
[BlackElo "2261"]
[Annotator "RC"]
[PlyCount "82"]
[EventDate "2024.01.22"]
[EventType "swiss"]
[EventCountry "SLO"]
[SourceTitle "playchess.com"]
[Source "ChessBase"]
[SourceQuality "1"]
[TimeControl "5400+30"]

1. e4 {[%emt 0:09:59]} c6 {[%emt 0:00:43]} 2. d4 {[%emt 0:00:53]} d5 {[%emt 0:00:15]} 3. Nc3 {[%emt 0:00:20]} dxe4 {[%emt 0:00:15]} 4. Nxe4 {[%emt 0:00:04]} Nf6 {[%emt 0:00:35]} 5. Nxf6+ {[%emt 0:02:18]} exf6 {[%emt 0:00:19]} 6. c3 {[%emt 0:00:02]} Bd6 {[%emt 0:00:21]} 7. Bd3 {[%emt 0:00:11]} O-O {[%emt 0:00:55]} 8. Qc2 {[%emt 0:01:38]} Re8+ {[%emt 0:00:11]} 9. Ne2 {[%emt 0:00:06]} h5 {[%emt 0:00:13]} 10. O-O {[%emt 0:00:05]} h4 {[%emt 0:01:17]} 11. h3 {[%emt 0:02:32]} Nd7 {[%emt 0:01:31]} 12. Be3 {[%emt 0:02:10]} Nf8 {[%emt 0:06:44]} 13. c4 {[%emt 0:03:18]} Be6 {[%emt 0:05:26]} 14. Rad1 {[%emt 0:03:11]} Rc8 {[%emt 0:04:56]} 15. Qa4 {[%emt 0:07:11]} a6 {[%emt 0:07:13]} 16. d5 {[%emt 0:05:05]} Bd7 {[%emt 0:01:59]} 17. dxc6 {[%emt 0:03:25]} Bxc6 {[%emt 0:00:11]} 18. Qb3 {[%emt 0:01:01]} Qe7 {[%emt 0:03:39]} 19. Rfe1 {[%emt 0:02:12]} Ne6 {[%emt 0:18:36]} 20. Bf5 {[%emt 0:03:34]} g6 {[%emt 0:10:31]} 21. Bxe6 {[%emt 0:17:10]} Qxe6 {[%emt 0:00:54]} 22. Qd3 {[%emt 0:03:13]} Rcd8 {[%emt 0:16:04]} 23. Nd4 {[%emt 0:00:27]} Qe5 {[%emt 0:01:29]} 24. f4 {[%emt 0:02:14]} Qe4 {[%emt 0:00:07]} 25. Nxc6 {[%emt 0:00:54]} Qxc6 {[%emt 0:00:11]} 26. Qc3 {[%emt 0:01:08]} Bc5 {[%emt 0:04:15]} 27. Rxd8 {[%emt 0:03:01]} Rxd8 {[%emt 0:00:05]} 28. Kh1 {[%emt 0:04:21]} Kg7 {[%emt 0:04:49]} 29. Bxc5 {[%emt 0:02:48]} Qxc5 {[%emt 0:00:07]} 30. b3 {[%emt 0:00:39]} Qf2 {[%emt 0:01:37]} 31. Qe3 {[%emt 0:00:59]} Qxa2 {[%emt 0:00:55]} 32. Qe7 {[%emt 0:01:12]} Qd2 {[%emt 0:01:30]} 33. c5 {[%emt 0:01:30]} Rd7 {[%emt 0:02:16]} 34. Qe8 {[%emt 0:01:17]} Rd3 {[%emt 0:00:41]} 35. Rf1 {[%emt 0:01:51]} Rxb3 {[%emt 0:00:51]} 36. c6 {[%emt 0:01:30]} Re3 {[%emt 0:00:38]} 37. Qc8 {[%emt 0:00:14]} Re1 {[%emt 0:00:47]} 38. Rxe1 {[%emt 0:00:28]} Qxe1+ {[%emt 0:00:06]} 39. Kh2 {[%emt 0:00:12]} Qg3+ {[%emt 0:00:02]} 40. Kg1 {[%emt 0:00:08]} Qe3+ {[%emt 0:00:07]} 41. Kh2 {[%emt 0:00:09]} Qxf4+ {[%emt 0:00:04]} 0-1

[Event "28th Hit Open-A 2024"]
[Site "Nova Gorica"]
[Date "2024.01.30"]
[Round "6.16"]
[White "Jalovec, Igor"]
[Black "Skrbec, Leon"]
[Result "0-1"]
[ECO "B22"]
[WhiteElo "1703"]
[BlackElo "2218"]
[Annotator "RC"]
[PlyCount "94"]
[EventDate "2024.01.22"]
[EventType "swiss"]
[EventCountry "SLO"]
[SourceTitle "playchess.com"]
[Source "ChessBase"]
[SourceQuality "1"]
[TimeControl "5400+30"]

1. e4 {[%emt 0:00:03]} c5 {[%emt 0:00:11]} 2. c3 {[%emt 0:00:10]} Nf6 {[%emt 0:00:40]} 3. e5 {[%emt 0:00:50]} Nd5 {[%emt 0:00:05]} 4. d4 {[%emt 0:01:02]} cxd4 {[%emt 0:00:05]} 5. cxd4 {[%emt 0:00:55]} d6 {[%emt 0:00:06]} 6. Nf3 {[%emt 0:01:45]} e6 {[%emt 0:04:35]} 7. Bc4 {[%emt 0:05:06]} Nb6 {[%emt 0:02:58]} 8. Bd3 {[%emt 0:02:06]} Nc6 {[%emt 0:00:16]} 9. a3 {[%emt 0:03:39]} Be7 {[%emt 0:04:09]} 10. O-O {[%emt 0:00:14]} O-O {[%emt 0:03:09]} 11. Nc3 {[%emt 0:02:53]} d5 {[%emt 0:03:33]} 12. Bc2 {[%emt 0:03:54]} f5 {[%emt 0:02:17]} 13. Qd3 {[%emt 0:06:51]} Bd7 {[%emt 0:00:56]} 14. Nd2 {[%emt 0:10:53]} Rc8 {[%emt 0:00:30]} 15. g4 {[%emt 0:09:42]} a6 {[%emt 0:06:32]} 16. gxf5 {[%emt 0:02:45]} Rxf5 {[%emt 0:01:04]} 17. Qh3 {[%emt 0:03:51]} Nxd4 {[%emt 0:00:06]} 18. Bxf5 {[%emt 0:00:38]} Nxf5 {[%emt 0:00:05]} 19. Ne2 {[%emt 0:07:26]} Bb5 {[%emt 0:06:53]} 20. Re1 {[%emt 0:00:44]} Qd7 {[%emt 0:02:37]} 21. Qg4 {[%emt 0:04:11]} Rf8 {[%emt 0:05:50]} 22. Nb3 {[%emt 0:02:17]} Bxe2 {[%emt 0:05:44]} 23. Rxe2 {[%emt 0:01:49]} Qb5 {[%emt 0:00:06]} 24. Re3 {[%emt 0:05:38]} Nc4 {[%emt 0:01:07]} 25. Rh3 {[%emt 0:05:06]} Nxe5 {[%emt 0:00:57]} 26. Qh5 {[%emt 0:00:12]} h6 {[%emt 0:00:56]} 27. Nd4 {[%emt 0:02:50]} Nxd4 {[%emt 0:02:18]} 28. Qxe5 {[%emt 0:00:04]} Bf6 {[%emt 0:00:06]} 29. Qh5 {[%emt 0:03:14]} Nf5 {[%emt 0:02:21]} 30. Qg6 {[%emt 0:02:46]} Qe8 {[%emt 0:13:52]} 31. Qg4 {[%emt 0:00:42]} Kh7 {[%emt 0:00:08]} 32. Rb3 {[%emt 0:03:04]} Qd7 {[%emt 0:01:19]} 33. Bd2 {[%emt 0:00:25]} Bd4 {[%emt 0:03:26]} 34. Be3 {[%emt 0:04:16]} Rf6 {[%emt 0:01:12]} 35. Qe2 {[%emt 0:00:47]} Rg6+ {[%emt 0:00:04]} 36. Kh1 {[%emt 0:00:40]} Bf6 {[%emt 0:02:52]} 37. Qd3 {[%emt 0:01:48]} d4 {[%emt 0:01:05]} 38. Bf4 {[%emt 0:00:28]} e5 {[%emt 0:06:02]} 39. Bg3 {[%emt 0:00:30]} Qd5+ {[%emt 0:00:05]} 40. Kg1 {[%emt 0:01:06]} e4 {[%emt 0:00:07]} 41. Qd1 {[%emt 0:00:57]} d3 {[%emt 0:00:58]} 42. Rc1 {[%emt 0:01:00]} Nd4 {[%emt 0:00:13]} 43. Rb6 {[%emt 0:00:29]} Ne2+ {[%emt 0:00:17]} 44. Kf1 {[%emt 0:00:02]} e3 {[%emt 0:00:35]} 45. fxe3 {[%emt 0:00:46]} Qf3+ {[%emt 0:00:05]} 46. Ke1 {[%emt 0:00:19]} Qxe3 {[%emt 0:00:32]} 47. Bf2 {[%emt 0:00:11]} Bh4 {[%emt 0:00:23]} 0-1